Workbook

Sheet Molasses
G2: Louisiana Sugar Cane Cooperative, Inc.
F4: Location Deliveries
A6: Date | B6: Ticket no. | D6: SM to Other | E6: Other Del. | F6: Sm to PB | G6: SM to BB | H6: Del. Lbs | I6: Brix | J6: gallons | K6: Lbs. 79.5
A7: 2021-10-11 | B7: 1400 | F7: 57480 | H7: =E7+F7+G7 -> 57480 | I7: 0.8868 | J7: =H7*I7/9.3015 -> 5480.11224 | K7: =H7*I7/0.795 -> 64117.31321
A8: =A7 -> 2021-10-11 | B8: 1401 | F8: 57260 | H8: 57260 | I8: =I7 -> 0.8868 | J8: =H8*I8/9.3015 -> 5459.137558 | K8: =H8*I8/0.795 -> 63871.90943
A9: =A8 -> 2021-10-11 | B9: =1+B8 -> 1402 | F9: 56780 | H9: 56780 | I9: =I8 -> 0.8868 | J9: 5413.374617 | K9: 63336.48302
A10: 2021-10-11 | B10: =1+B9 -> 1403 | F10: 58440 | H10: 58440 | I10: 0.8868 | J10: =H10*I10/9.3015 -> 5571.638123 | K10: =H10*I10/0.795 -> 65188.16604
A11: 2021-10-11 | B11: 1404 | F11: 57840 | H11: 57840 | I11: 0.8868 | J11: 5514.434446 | K11: 64518.88302
A12: 2021-10-11 | B12: 1405 | F12: 60100 | H12: 60100 | I12: 0.8868 | J12: 5729.901629 | K12: 67039.84906
A13: 2021-10-11 | B13: 1406 | F13: 58660 | H13: 58660 | I13: 0.8868 | J13: 5592.612804 | K13: 65433.56981
A14: 2021-10-11 | B14: 1407 | F14: 59940 | H14: 59940 | I14: 0.8868 | J14: 5714.647315 | K14: 66861.37358
A15: 2021-10-11 | B15: 1408 | F15: 58880 | H15: 58880 | I15: 0.8868 | J15: 5613.587486 | K15: 65678.97358
A16: 2021-10-11 | B16: 1409 | F16: 61080 | H16: 61080 | I16: 0.8868 | J16: 5823.334301 | K16: 68133.01132
A17: 2021-10-11 | B17: 1410 | F17: 60360 | H17: 60360 | I17: 0.8868 | J17: 5754.689889 | K17: 67329.8717
A18: 2021-10-11 | B18: 1411 | F18: 60920 | H18: 60920 | I18: 0.8868 | J18: 5808.079987 | K18: 67954.53585
A19: 2021-10-12 | B19: 1412 | F19: 59580 | H19: 59580 | I19: 0.89 | J19: =H19*I19/9.3015 -> 5700.822448 | K19: =H19*I19/0.795 -> 66699.62264
A20: =A19 -> 2021-10-12 | B20: 1413 | F20: 59780 | H20: 59780 | I20: =I19 -> 0.89 | J20: 5719.959146 | K20: 66923.52201
A21: =A20 -> 2021-10-12 | B21: 1414 | F21: 59640 | H21: 59640 | I21: =I20 -> 0.89 | J21: 5706.563458 | K21: 66766.79245
A22: 2021-10-12 | B22: 1415 | F22: 59760 | H22: 59760 | I22: 0.89 | J22: 5718.045477 | K22: 66901.13208
A23: 2021-10-12 | B23: 1416 | F23: 61320 | H23: 61320 | I23: 0.89 | J23: 5867.311724 | K23: 68647.54717
A24: 2021-10-12 | B24: 1417 | F24: 59200 | H24: 59200 | I24: 0.89 | J24: 5664.462721 | K24: 66274.21384
A25: 2021-10-12 | B25: 1418 | F25: 60420 | H25: 60420 | I25: 0.89 | J25: 5781.196581 | K25: 67640
A26: 2021-10-12 | B26: 1419 | F26: 59060 | H26: 59060 | I26: 0.89 | J26: 5651.067032 | K26: 66117.48428
A27: 2021-10-12 | B27: 3490 | F27: 59960 | H27: 59960 | I27: 0.89 | J27: 5737.182175 | K27: 67125.03145
A28: 2021-10-12 | B28: 3491 | F28: 58940 | H28: 58940 | I28: 0.89 | J28: 5639.585013 | K28: 65983.14465
A29: 2021-10-12 | B29: 2410 | F29: 59660 | H29: 59660 | I29: 0.89 | J29: 5708.477127 | K29: 66789.18239
A30: 2021-10-13 | B30: 3492 | F30: 59560 | H30: =E30+F30+G30 -> 59560 | I30: 0.89 | J30: =H30*I30/9.3015 -> 5698.908778 | K30: =H30*I30/0.795 -> 66677.2327
A31: =A30 -> 2021-10-13 | B31: 1421 | F31: 60860 | H31: 60860 | I31: 0.89 | J31: 5823.297318 | K31: 68132.57862
A32: =A31 -> 2021-10-13 | B32: 2411 | F32: 61060 | H32: 61060 | I32: 0.89 | J32: 5842.434016 | K32: 68356.47799
A33: 2021-10-13 | B33: 2412 | F33: 59420 | H33: 59420 | I33: 0.89 | J33: 5685.513089 | K33: 66520.50314
A34: 2021-10-13 | B34: 2413 | F34: 60940 | H34: 60940 | I34: 0.89 | J34: 5830.951997 | K34: 68222.13836
A35: 2021-10-13 | B35: 2414 | F35: 60820 | H35: 60820 | I35: 0.89 | J35: 5819.469978 | K35: 68087.79874
A36: 2021-10-13 | B36: 2415 | F36: 62120 | H36: 62120 | I36: 0.89 | J36: 5943.858517 | K36: 69543.14465
A37: 2021-10-14 | B37: 2416 | F37: 60280 | H37: 60280 | I37: 0.892 | J37: =H37*I37/9.3015 -> 5780.762243 | K37: =H37*I37/0.795 -> 67634.91824
A38: 2021-10-14 | B38: 2421 | F38: 60240 | H38: 60240 | I38: =I37 -> 0.892 | J38: 5776.926302 | K38: 67590.03774
A39: 2021-10-14 | B39: =1+B38 -> 2422 | F39: 61620 | H39: 61620 | I39: =I38 -> 0.892 | J39: 5909.266247 | K39: 69138.41509
A40: 2021-10-14 | B40: 1425 | F40: 60280 | H40: 60280 | I40: 0.892 | J40: 5780.762243 | K40: 67634.91824
A41: 2021-10-14 | B41: 1426 | F41: 60780 | H41: 60780 | I41: 0.892 | J41: 5828.711498 | K41: 68195.92453
A42: 2021-10-14 | B42: 1427 | F42: 60940 | H42: 60940 | I42: 0.892 | J42: 5844.05526 | K42: 68375.44654
A43: 2021-10-14 | B43: 1428 | F43: 58680 | H43: 58680 | I43: 0.892 | J43: 5627.324625 | K43: 65839.69811
A44: 2021-10-14 | B44: 1429 | F44: 61540 | H44: 61540 | I44: 0.892 | J44: 5901.594367 | K44: 69048.65409
A45: 2021-10-14 | B45: 1430 | F45: 60340 | H45: 60340 | I45: 0.892 | J45: 5786.516153 | K45: 67702.23899
A46: 2021-10-14 | B46: 1431 | F46: 60660 | H46: 60660 | I46: 0.892 | J46: 5817.203677 | K46: 68061.28302
A47: 2021-10-14 | B47: 1432 | F47: 60560 | H47: 60560 | I47: 0.892 | J47: 5807.613826 | K47: 67949.08176
A48: 2021-10-14 | B48: 1433 | F48: 61640 | H48: 61640 | I48: 0.892 | J48: 5911.184218 | K48: 69160.85535
A49: 2021-10-14 | B49: =1+B48 -> 1434 | F49: 59600 | H49: 59600 | I49: 0.892 | J49: 5715.551255 | K49: 66871.94969
A50: 2021-10-15 | B50: 1435 | F50: 61240 | H50: 61240 | I50: 0.892 | J50: =H50*I50/9.3015 -> 5872.824813 | K50: =H50*I50/0.795 -> 68712.05031
A51: 2021-10-15 | B51: 1436 | F51: 59720 | H51: 59720 | I51: 0.892 | J51: 5727.059076 | K51: 67006.59119
A52: 2021-10-15 | B52: 1437 | F52: 60700 | H52: 60700 | I52: 0.892 | J52: 5821.039617 | K52: 68106.16352
A53: 2021-10-15 | B53: 1438 | F53: 60640 | H53: 60640 | I53: 0.892 | J53: 5815.285707 | K53: 68038.84277
A54: 2021-10-15 | B54: 1439 | F54: 60840 | H54: 60840 | I54: 0.892 | J54: 5834.465409 | K54: 68263.24528
A55: 2021-10-15 | B55: 1440 | F55: 61260 | H55: 61260 | I55: 0.892 | J55: 5874.742783 | K55: 68734.49057
A56: 2021-10-15 | B56: 1441 | F56: 61860 | H56: 61860 | I56: 0.892 | J56: 5932.28189 | K56: 69407.69811
A57: 2021-10-18 | B57: 1442 | F57: 59120 | H57: 59120 | I57: 0.8968 | J57: =H57*I57/9.3015 -> 5700.028598 | K57: =H57*I57/0.795 -> 66690.33459
A58: =A57 -> 2021-10-18 | B58: 1443 | F58: 60920 | H58: 60920 | I58: 0.8968 | J58: 5873.5748 | K58: 68720.82516
A59: =A58 -> 2021-10-18 | B59: 1444 | F59: 58440 | H59: 58440 | I59: 0.8968 | J59: 5634.466699 | K59: 65923.26038
A60: 2021-10-18 | B60: 1445 | F60: 60960 | H60: 60960 | I60: 0.8968 | J60: 5877.431382 | K60: 68765.94717
A61: 2021-10-18 | B61: 1446 | F61: 60180 | H61: 60180 | I61: 0.8968 | J61: 5802.228028 | K61: 67886.06792
A62: 2021-10-18 | B62: 1447 | F62: 60640 | H62: 60640 | I62: 0.8968 | J62: 5846.578724 | K62: 68404.97107
A63: 2021-10-18 | B63: 1448 | F63: 60200 | H63: 60200 | I63: 0.8968 | J63: 5804.156319 | K63: 67908.62893
A64: 2021-10-18 | B64: 1449 | F64: 60520 | H64: 60520 | I64: 0.8968 | J64: 5835.008977 | K64: 68269.60503
A65: 2021-10-18 | B65: 1450 | F65: 60160 | H65: 60160 | I65: 0.8968 | J65: 5800.299737 | K65: 67863.50692
A66: 2021-10-18 | B66: 1451 | F66: 60520 | H66: 60520 | I66: 0.8968 | J66: 5835.008977 | K66: 68269.60503
A67: 2021-10-18 | B67: 1452 | F67: 59980 | H67: 59980 | I67: 0.8968 | J67: 5782.945116 | K67: 67660.45786
A68: 2021-10-18 | B68: 1453 | F68: 61000 | H68: 61000 | I68: 0.8968 | J68: 5881.287964 | K68: 68811.06918
A69: 2021-10-18 | B69: 1454 | F69: 59580 | H69: 59580 | I69: 0.8968 | J69: 5744.379294 | K69: 67209.23774
A70: 2021-10-19 | B70: 1455 | F70: 60640 | H70: 60640 | I70: 0.8984 | J70: =H70*I70/9.3015 -> 5857.00973 | K70: =H70*I70/0.795 -> 68527.01384
A71: =A70 -> 2021-10-19 | B71: 1457 | F71: 60000 | H71: 60000 | I71: 0.8984 | J71: 5795.194323 | K71: 67803.77358
A72: =A71 -> 2021-10-19 | B72: 1458 | F72: 59900 | H72: 59900 | I72: 0.8984 | J72: 5785.535666 | K72: 67690.7673
A73: 2021-10-19 | B73: 1460 | F73: 58980 | H73: 58980 | I73: 0.8984 | J73: 5696.67602 | K73: 66651.10943
A74: 2021-10-19 | B74: 1461 | F74: 58620 | H74: 58620 | I74: 0.8984 | J74: 5661.904854 | K74: 66244.28679
A75: 2021-10-19 | B75: 1462 | F75: 62840 | H75: 62840 | I75: 0.8984 | J75: 6069.500188 | K75: 71013.1522
A76: 2021-10-19 | B76: 1463 | F76: 60340 | H76: 60340 | I76: 0.8984 | J76: 5828.033758 | K76: 68187.99497
A77: 2021-10-19 | B77: 1465 | F77: 60140 | H77: 60140 | I77: 0.8984 | J77: 5808.716444 | K77: 67961.98239
A78: 2021-10-19 | B78: 2417 | F78: 60020 | H78: 60020 | I78: 0.8984 | J78: 5797.126055 | K78: 67826.37484
A79: 2021-10-19 | B79: 2418 | F79: 59840 | H79: 59840 | I79: 0.8984 | J79: 5779.740472 | K79: 67622.96352
A80: 2021-10-19 | B80: 2419 | F80: 61380 | H80: 61380 | I80: 0.8984 | J80: 5928.483793 | K80: 69363.26038
A81: 2021-10-19 | B81: 2420 | F81: 61240 | H81: 61240 | I81: 0.8984 | J81: 5914.961673 | K81: 69205.05157
A82: 2021-10-20 | B82: 2431 | F82: 61100 | H82: 61100 | I82: 0.9004 | J82: =H82*I82/9.3015 -> 5914.577219 | K82: =H82*I82/0.795 -> 69200.55346
A83: =A82 -> 2021-10-20 | B83: 2423 | F83: 60860 | H83: 60860 | I83: 0.9004 | J83: 5891.344837 | K83: 68928.73459
A84: =A83 -> 2021-10-20 | B84: 2424 | F84: 60420 | H84: 60420 | I84: 0.9004 | J84: 5848.752137 | K84: 68430.4
A85: 2021-10-20 | B85: 2425 | F85: 60920 | H85: 60920 | I85: 0.9004 | J85: 5897.152932 | K85: 68996.68931
A86: 2021-10-20 | B86: 2426 | F86: 60600 | H86: 60600 | I86: 0.9004 | J86: 5866.176423 | K86: 68634.26415
A87: 2021-10-20 | B87: 2428 | F87: 59640 | H87: 59640 | I87: 0.9004 | J87: 5773.246896 | K87: 67546.98868
A88: 2021-10-20 | B88: 2427 | F88: 59760 | H88: 59760 | I88: 0.9004 | J88: 5784.863087 | K88: 67682.89811
A89: 2021-10-20 | B89: 2429 | F89: 60400 | H89: 60400 | I89: 0.9004 | J89: 5846.816105 | K89: 68407.74843
A90: 2021-10-20 | B90: 1468 | F90: 59800 | H90: 59800 | I90: 0.9004 | J90: 5788.73515 | K90: 67728.20126
A91: 2021-10-20 | B91: 1470 | F91: 60580 | H91: 60580 | I91: 0.9004 | J91: 5864.240391 | K91: 68611.61258
A92: 2021-10-20 | B92: 2432 | F92: 60280 | H92: 60280 | I92: 0.9004 | J92: 5835.199914 | K92: 68271.83899
A93: 2021-10-20 | B93: 1472 | F93: 59460 | H93: 59460 | I93: 0.9004 | J93: 5755.822609 | K93: 67343.12453
A94: 2021-10-21 | B94: 2433 | F94: 61180 | H94: 61180 | I94: 0.902 | J94: 5932.84524 | K94: 69414.28931
A95: 2021-10-21 | B95: 1474 | F95: 59300 | H95: 59300 | I95: 0.902 | J95: =H95*I95/9.3015 -> 5750.53486 | K95: =H95*I95/0.795 -> 67281.25786
A96: 2021-10-21 | B96: 2434 | F96: 60620 | H96: 60620 | I96: 0.902 | J96: 5878.54002 | K96: 68778.91824
A97: 2021-10-21 | B97: 1476 | F97: 59120 | H97: 59120 | I97: 0.902 | J97: 5733.079611 | K97: 67077.03145
A98: 2021-10-21 | B98: 1477 | F98: 60640 | H98: 60640 | I98: 0.902 | J98: 5880.479493 | K98: 68801.61006
A99: 2021-10-21 | B99: 1478 | F99: 59240 | H99: 59240 | I99: 0.902 | J99: 5744.716444 | K99: 67213.18239
A100: 2021-10-21 | B100: 1479 | F100: 60680 | H100: 60680 | I100: 0.902 | J100: 5884.358437 | K100: 68846.99371
A101: 2021-10-21 | B101: 1480 | F101: 59980 | H101: 59980 | I101: 0.902 | J101: 5816.476912 | K101: 68052.77987
A102: 2021-10-21 | B102: 1481 | F102: 62380 | H102: 62380 | I102: 0.902 | J102: 6049.213568 | K102: 70775.79874
A103: 2021-10-21 | B103: 1482 | F103: 61040 | H103: 61040 | I103: 0.902 | J103: 5919.268935 | K103: 69255.44654
A104: 2021-10-21 | B104: 1483 | F104: 61480 | H104: 61480 | I104: 0.902 | J104: 5961.937322 | K104: 69754.66667
A105: 2021-10-21 | B105: 1484 | F105: 58560 | H105: 58560 | I105: 0.902 | J105: 5678.774391 | K105: 66441.66038
A106: 2021-10-22 | B106: =1+B105 -> 1485 | F106: 61440 | H106: 61440 | I106: 0.902 | J106: 5958.058378 | K106: 69709.28302
A107: =A106 -> 2021-10-22 | B107: =1+B106 -> 1486 | F107: 59040 | H107: 59040 | I107: 0.902 | J107: =H107*I107/9.3015 -> 5725.321722 | K107: =H107*I107/0.795 -> 66986.26415
A108: =A107 -> 2021-10-22 | B108: 1487 | F108: 60660 | H108: 60660 | I108: 0.902 | J108: 5882.418965 | K108: 68824.30189
A109: 2021-10-22 | B109: 1488 | F109: 59100 | H109: 59100 | I109: 0.902 | J109: 5731.140139 | K109: 67054.33962
A110: 2021-10-22 | B110: 1489 | F110: 60320 | H110: 60320 | I110: 0.902 | J110: 5849.447939 | K110: 68438.54088
A111: 2021-10-22 | B111: 1490 | F111: 60360 | H111: 60360 | I111: 0.902 | J111: 5853.326883 | K111: 68483.92453
A112: 2021-10-22 | B112: 1491 | F112: 60560 | H112: 60560 | I112: 0.902 | J112: 5872.721604 | K112: 68710.84277
A113: 2021-10-22 | B113: 1492 | F113: 60880 | H113: 60880 | I113: 0.902 | J113: 5903.753158 | K113: 69073.91195
A114: 2021-10-22 | B114: 1493 | F114: 61420 | H114: 61420 | I114: 0.902 | J114: =H114*I114/9.3015 -> 5956.118906 | K114: =H114*I114/0.795 -> 69686.59119
A115: 2021-10-25 | B115: 1494 | F115: 60700 | H115: 60700 | I115: 0.9084 | J115: =H115*I115/9.3015 -> 5928.063216 | K115: =H115*I115/0.795 -> 69358.33962
A116: =A115 -> 2021-10-25 | B116: 1495 | F116: 61980 | H116: 61980 | I116: =I115 -> 0.9084 | J116: 6053.07015 | K116: 70820.92075
A117: =A116 -> 2021-10-25 | B117: 1496 | F117: 60040 | H117: 60040 | I117: =I116 -> 0.9084 | J117: 5863.606515 | K117: 68604.19623
A118: 2021-10-25 | B118: 1497 | F118: 62820 | H118: 62820 | I118: 0.9084 | J118: 6135.105951 | K118: 71780.73962
A119: 2021-10-25 | B119: 1498 | F119: 61180 | H119: 61180 | I119: 0.9084 | J119: 5974.940816 | K119: 69906.80755
A120: 2021-10-25 | B120: 1499 | F120: 61760 | H120: 61760 | I120: 0.9084 | J120: 6031.584583 | K120: 70569.53962
A121: 2021-10-25 | B121: 1500 | F121: 58920 | H121: 58920 | I121: 0.9084 | J121: 5754.225448 | K121: 67324.43774
A122: 2021-10-26 | B122: 1501 | F122: 61220 | H122: 61220 | I122: 0.9128 | J122: =H122*I122/9.3015 -> 6007.806913 | K122: =H122*I122/0.795 -> 70291.34088
A123: =A122 -> 2021-10-26 | B123: 1502 | F123: 59980 | H123: 59980 | I123: =I122 -> 0.9128 | J123: 5886.119873 | K123: 68867.60252
A124: =A123 -> 2021-10-26 | B124: 1503 | F124: 60760 | H124: 60760 | I124: =I123 -> 0.9128 | J124: 5962.664947 | K124: 69763.17987
A125: 2021-10-26 | B125: 1504 | F125: 60860 | H125: 60860 | I125: 0.9128 | J125: 5972.478417 | K125: 69877.99748
A126: 2021-10-26 | B126: 1505 | F126: 60880 | H126: 60880 | I126: 0.9128 | J126: 5974.441112 | K126: 69900.96101
A127: 2021-10-26 | B127: 1506 | F127: 60540 | H127: 60540 | I127: 0.9128 | J127: 5941.07531 | K127: 69510.58113
A128: 2021-10-26 | B128: 1507 | F128: 60720 | H128: 60720 | I128: 0.9128 | J128: 5958.739558 | K128: 69717.25283
A129: 2021-10-26 | B129: 1508 | F129: 60680 | H129: 60680 | I129: 0.9128 | J129: 5954.81417 | K129: 69671.32579
A130: 2021-10-26 | B130: 1509 | F130: 61340 | H130: 61340 | I130: 0.9128 | J130: 6019.583078 | K130: 70429.12201
A131: 2021-10-26 | B131: 1510 | F131: 58740 | H131: 58740 | I131: 0.9128 | J131: 5764.432833 | K131: 67443.86415
A132: 2021-10-27 | B132: 1511 | F132: 61160 | H132: 61160 | I132: 0.9104 | J132: =H132*I132/9.3015 -> 5986.13815 | K132: =H132*I132/0.795 -> 70037.81635
A133: =A132 -> 2021-10-27 | B133: 1512 | F133: 59840 | H133: 59840 | I133: 0.9104 | J133: =H133*I133/9.3015 -> 5856.940924 | K133: =H133*I133/0.795 -> 68526.20881
A134: =A133 -> 2021-10-27 | B134: 1513 | F134: 60700 | H134: 60700 | I134: 0.9104 | J134: 5941.114874 | K134: 69511.04403
A135: 2021-10-27 | B135: 1514 | F135: 60580 | H135: 60580 | I135: 0.9104 | J135: 5929.369672 | K135: 69373.62516
A136: 2021-10-27 | B136: 1515 | F136: 60680 | H136: 60680 | I136: 0.9104 | J136: 5939.15734 | K136: 69488.14088
A137: 2021-10-27 | B137: 1516 | F137: 60420 | H137: 60420 | I137: 0.9104 | J137: 5913.709402 | K137: 69190.4
A138: 2021-10-27 | B138: 1517 | F138: 61360 | H138: 61360 | I138: 0.9104 | J138: 6005.713487 | K138: 70266.8478
A139: 2021-10-27 | B139: 1518 | F139: 60280 | H139: 60280 | I139: 0.9104 | J139: 5900.006666 | K139: 69030.07799
A140: 2021-10-27 | B140: 1519 | F140: 61160 | H140: 61160 | I140: 0.9104 | J140: 5986.13815 | K140: 70037.81635
A141: 2021-10-27 | B141: 1520 | F141: 58900 | H141: 58900 | I141: 0.9104 | J141: 5764.936838 | K141: 67449.76101
A142: 2021-10-28 | B142: 1521 | F142: 60280 | H142: 60280 | I142: 0.91 | J142: =H142*I142/9.3015 -> 5897.414396 | K142: =H142*I142/0.795 -> 68999.74843
A143: =A142 -> 2021-10-28 | B143: 1522 | F143: 59940 | H143: 59940 | I143: =I142 -> 0.91 | J143: 5864.150943 | K143: 68610.56604
A144: =A143 -> 2021-10-28 | B144: 1523 | F144: 60420 | H144: 60420 | I144: =I143 -> 0.91 | J144: 5911.111111 | K144: 69160
A145: 2021-10-28 | B145: 1524 | F145: 60460 | H145: 60460 | I145: 0.91 | J145: 5915.024458 | K145: 69205.78616
A146: 2021-10-28 | B146: 1525 | F146: 60340 | H146: 60340 | I146: 0.91 | J146: 5903.284416 | K146: 69068.42767
A147: 2021-10-28 | B147: 1526 | F147: 60840 | H147: 60840 | I147: 0.91 | J147: 5952.201258 | K147: 69640.75472
A148: 2021-10-28 | B148: 1527 | F148: 60640 | H148: 60640 | I148: 0.91 | J148: 5932.634521 | K148: 69411.8239
A149: 2021-10-28 | B149: 1528 | F149: 60580 | H149: 60580 | I149: 0.91 | J149: 5926.7645 | K149: 69343.14465
A150: 2021-10-28 | B150: 1529 | F150: 60480 | H150: 60480 | I150: 0.91 | J150: 5916.981132 | K150: 69228.67925
A151: 2021-10-28 | B151: 1530 | F151: 58840 | H151: 58840 | I151: 0.91 | J151: 5756.533892 | K151: 67351.44654
A152: 2021-10-29 | B152: 1531 | F152: 60460 | H152: 60460 | I152: 0.9104 | J152: =H152*I152/9.3015 -> 5917.624469 | K152: =H152*I152/0.795 -> 69236.20629
A153: =A152 -> 2021-10-29 | B153: 1532 | F153: 59620 | H153: 59620 | I153: 0.9104 | J153: =H153*I153/9.3015 -> 5835.408052 | K153: =H153*I153/0.795 -> 68274.27421
A154: =A153 -> 2021-10-29 | B154: 1533 | F154: 60460 | H154: 60460 | I154: 0.9104 | J154: 5917.624469 | K154: 69236.20629
A155: 2021-10-29 | B155: 1534 | F155: 59700 | H155: 59700 | I155: 0.9104 | J155: 5843.238187 | K155: 68365.88679
A156: 2021-10-29 | B156: 1535 | F156: 60860 | H156: 60860 | I156: 0.9104 | J156: 5956.775144 | K156: 69694.26918
A157: 2021-10-29 | B157: 1536 | F157: 59860 | H157: 59860 | I157: 0.9104 | J157: 5858.898457 | K157: 68549.11195
A158: 2021-10-29 | B158: 1537 | F158: 61640 | H158: 61640 | I158: 0.9104 | J158: 6033.118959 | K158: 70587.49182
A159: 2021-11-01 | B159: 1538 | F159: 60660 | H159: 60660 | I159: 0.9084 | J159: 5924.156749 | K159: 69312.63396
A160: =A159 -> 2021-11-01 | B160: 1539 | F160: 61660 | H160: 61660 | I160: =I159 -> 0.9084 | J160: =H160*I160/9.3015 -> 6021.818416 | K160: =H160*I160/0.795 -> 70455.27547
A161: =A160 -> 2021-11-01 | B161: 1540 | F161: 59560 | H161: 59560 | I161: =I160 -> 0.9084 | J161: 5816.728915 | K161: 68055.7283
A162: 2021-11-01 | B162: 1541 | F162: 60120 | H162: 60120 | I162: 0.9084 | J162: 5871.419448 | K162: 68695.60755
A163: 2021-11-01 | B163: 1542 | F163: 59760 | H163: 59760 | I163: 0.9084 | J163: 5836.261248 | K163: 68284.2566
A164: 2021-11-01 | B164: 1543 | F164: 61940 | H164: 61940 | I164: 0.9084 | J164: 6049.163683 | K164: 70775.21509
A165: 2021-11-01 | B165: 1544 | F165: 61820 | H165: 61820 | I165: 0.9084 | J165: 6037.444283 | K165: 70638.09811
A166: 2021-11-01 | B166: 1545 | F166: 61640 | H166: 61640 | I166: 0.9084 | J166: 6019.865183 | K166: 70432.42264
A167: 2021-11-01 | B167: 1546 | F167: 59220 | H167: 59220 | I167: 0.9084 | J167: 5783.523948 | K167: 67667.23019
A168: 2021-11-01 | B168: 1547 | F168: 61120 | H168: 61120 | I168: 0.9084 | J168: 5969.081116 | K168: 69838.24906
A169: 2021-11-01 | B169: 1548 | F169: 61020 | H169: 61020 | I169: 0.9084 | J169: 5959.314949 | K169: 69723.98491
A170: 2021-11-01 | B170: 1549 | F170: 59660 | H170: 59660 | I170: 0.9084 | J170: 5826.495081 | K170: 68169.99245
A171: 2021-11-01 | B171: =1+B170 -> 1550 | F171: 59160 | H171: 59160 | I171: 0.9084 | J171: 5777.664248 | K171: 67598.6717
A172: 2021-11-02 | B172: 1551 | F172: 59340 | H172: 59340 | I172: 0.91 | J172: =H172*I172/9.3015 -> 5805.450734 | K172: =H172*I172/0.795 -> 67923.77358
A173: =A172 -> 2021-11-02 | B173: 1552 | F173: 60180 | H173: 60180 | I173: =I172 -> 0.91 | J173: 5887.631027 | K173: 68885.28302
A174: =A173 -> 2021-11-02 | B174: 1553 | F174: 61860 | H174: 61860 | I174: =I173 -> 0.91 | J174: 6051.991614 | K174: 70808.30189
A175: 2021-11-02 | B175: 1554 | F175: 61200 | H175: 61200 | I175: 0.91 | J175: 5987.421384 | K175: 70052.83019
A176: 2021-11-02 | B176: 1555 | F176: 61720 | H176: 61720 | I176: 0.91 | J176: 6038.294899 | K176: 70648.05031
A177: 2021-11-02 | B177: 1556 | F177: 60800 | H177: 60800 | I177: 0.91 | J177: 5948.287911 | K177: 69594.96855
A178: 2021-11-02 | B178: 1557 | F178: 60720 | H178: 60720 | I178: 0.91 | J178: 5940.461216 | K178: 69503.39623
A179: 2021-11-02 | B179: 1558 | F179: 59760 | H179: 59760 | I179: 0.91 | J179: 5846.540881 | K179: 68404.5283
A180: 2021-11-03 | B180: 1559 | F180: 60620 | H180: 60620 | I180: 0.9028 | J180: =H180*I180/9.3015 -> 5883.753803 | K180: =H180*I180/0.795 -> 68839.9195
A181: =A180 -> 2021-11-03 | B181: 1560 | F181: 60460 | H181: 60460 | I181: =I180 -> 0.9028 | J181: 5868.224265 | K181: 68658.2239
A182: =A181 -> 2021-11-03 | B182: 1561 | F182: 59900 | H182: 59900 | I182: =I181 -> 0.9028 | J182: 5813.870881 | K182: 68022.28931
A183: =A182 -> 2021-11-03 | B183: 1562 | F183: 62340 | H183: 62340 | I183: 0.9028 | J183: 6050.696339 | K183: 70793.14717
A184: 2021-11-03 | B184: 1563 | F184: 60320 | H184: 60320 | I184: 0.9028 | J184: 5854.635919 | K184: 68499.24025
A185: 2021-11-03 | B185: 1564 | F185: 59600 | H185: 59600 | I185: 0.9028 | J185: 5784.752997 | K185: 67681.61006
A186: 2021-11-03 | B186: 1565 | F186: 60540 | H186: 60540 | I186: 0.9028 | J186: 5875.989034 | K186: 68749.0717
A187: 2021-11-03 | B187: 1566 | F187: 59660 | H187: 59660 | I187: 0.9028 | J187: 5790.576574 | K187: 67749.74591
A188: 2021-11-03 | B188: 1567 | F188: 60640 | H188: 60640 | I188: 0.9028 | J188: 5885.694995 | K188: 68862.63145
A189: 2021-11-04 | B189: 1568 | F189: 59860 | H189: 59860 | I189: 0.91 | J189: =H189*I189/9.3015 -> 5856.324249 | K189: =H189*I189/0.795 -> 68518.99371
A190: =A189 -> 2021-11-04 | B190: 1569 | F190: 60100 | H190: =E190+F190+G190 -> 60100 | I190: 0.91 | J190: 5879.804333 | K190: 68793.71069
A191: =A190 -> 2021-11-04 | B191: 1570 | F191: 59600 | H191: 59600 | I191: 0.91 | J191: 5830.887491 | K191: 68221.38365
A192: 2021-11-04 | B192: 1571 | F192: 61100 | H192: 61100 | I192: 0.91 | J192: 5977.638015 | K192: 69938.36478
A193: 2021-11-04 | B193: 1572 | F193: 60540 | H193: 60540 | I193: 0.91 | J193: 5922.851153 | K193: 69297.35849
A194: 2021-11-04 | B194: 1573 | F194: 60700 | H194: 60700 | I194: 0.91 | J194: 5938.504542 | K194: 69480.50314
A195: 2021-11-04 | B195: 1574 | F195: 60440 | H195: 60440 | I195: 0.91 | J195: 5913.067785 | K195: 69182.89308
A196: 2021-11-04 | B196: 1575 | F196: 60960 | H196: 60960 | I196: 0.91 | J196: 5963.9413 | K196: 69778.11321
A197: 2021-11-04 | B197: 1576 | F197: 61760 | H197: 61760 | I197: 0.91 | J197: 6042.208246 | K197: 70693.83648
A198: 2021-11-04 | B198: 1577 | F198: 61380 | H198: 61380 | I198: 0.91 | J198: 6005.031447 | K198: 70258.86792
A199: 2021-11-04 | B199: 1578 | F199: 61620 | H199: 61620 | I199: 0.91 | J199: 6028.51153 | K199: 70533.58491
A200: 2021-11-04 | B200: 1579 | F200: 60180 | H200: 60180 | I200: 0.91 | J200: 5887.631027 | K200: 68885.28302
A201: 2021-11-04 | B201: 1580 | F201: 60300 | H201: 60300 | I201: 0.91 | J201: 5899.371069 | K201: 69022.64151
A202: 2021-11-05 | B202: 1581 | F202: 60000 | H202: 60000 | I202: 0.9101 | J202: 5870.666022 | K202: 68686.79245
A203: =A202 -> 2021-11-05 | B203: 1582 | F203: 60980 | H203: 60980 | I203: 0.9104 | J203: =H203*I203/9.3015 -> 5968.520346 | K203: 69831.68805
... 529 more rows

Sheet Grand Total
G2: Louisiana Sugar Cane Cooperative, Inc.
F5: Location Deliveries
C7: Sm to BB | D7: SM to Other | E7: Other Del. | F7: Sm to PB | G7: BB to PB | H7: Delivered Lbs. | J7: gallons | K7: Lbs. 79.5
C8: =SUM(Molasses!C7:C1533) -> 0 | D8: =SUM(Molasses!D7:D1533) -> 0 | E8: =SUM(Molasses!E7:E1533) -> 0 | F8: =SUM(Molasses!F7:F1533) -> 43772840 | G8: =SUM(Molasses!G7:G1533) -> 0 | H8: =SUM(Molasses!H7:H1533) -> 43772840 | J8: =SUM(Molasses!J7:J1533) -> 4248321.609 | K8: =SUM(Molasses!K7:K1533) -> 49705362.83

Sheet Sheet1
A5: 1st | B5: GO TO Data
A7: 2nd | B7: select any one cell
A9: 3rd | B9: select subtotal
A11: 4th | B11: select ungrouped
A13: 5th | B13: select colmun
A15: 6th | B15: First unselect all ,then
B16: select from date on the spesfic year and dates to total amount you want print out
A18: 7th | B18: now you can see how the print out page
A20: 8th | B20: Go to the next page to print out Grand Total
A23: NB; | B23: To go back just click blank from molasses page
B24: which is ready to enter the next date molasse shipping.Repeat the same way.
B25: select all and unselect subtotal days and also select Blank.
